fUSD/lending_fUSD_20260608
["ID","MTS","AMOUNT","RATE_DAILY","PERIOD"]
[424462663,1780927870000,-273.0,0.00034231,30]
[424462668,1780927870000,-500.0,0.00034246,120]
[424462660,1780927870000,-1381.88,0.000342,20]
[424462680,1780927870000,-4645.0,0.00034288,30]
[424462665,1780927870000,-751.0,0.00034236,30]
[424462666,1780927870000,-673.0,0.00034236,30]
[424462677,1780927870000,-241.89206223,0.00034247,120]
[424462686,1780927870000,-2673.0,0.0003429,30]
[424462671,1780927870000,-500.0,0.00034246,120]
[424462673,1780927870000,-500.0,0.00034246,120]
[424462681,1780927870000,-521.0,0.00034288,30]
[424462672,1780927870000,-500.0,0.00034246,120]
[424462678,1780927870000,-150.0,0.00034247,2]
[424462675,1780927870000,-518.87459671,0.00034246,120]
[424462687,1780927870000,-540.0,0.0003429,30]
[424462683,1780927870000,-1704.0,0.00034288,30]
[424462684,1780927870000,-582.0,0.00034288,30]
[424462685,1780927870000,-630.0,0.0003429,30]
[424462689,1780927870000,-1000.0,0.000343,120]
[424462688,1780927870000,-861.0,0.0003429,30]
[424462664,1780927870000,-477.0,0.00034236,30]
[424462682,1780927870000,-165.0,0.00034288,30]
[424462661,1780927870000,-1000.0,0.000342,30]
[424462642,1780927870000,-10059.0,0.00034,2]
[424462658,1780927870000,-194.000028,0.00034186,2]
[424462695,1780927870000,-150.0,0.00034453,2]
[424462630,1780927870000,-446.20779902,0.00033903,120]
[424462631,1780927870000,-1410.42,0.00033979,120]
[424462633,1780927870000,-6600.0,0.00034,3]
[424462634,1780927870000,-185.5234782,0.00034,30]
[424462632,1780927870000,-317.563379,0.00033999,120]
[424462643,1780927870000,-750.0,0.00034,2]
[424462639,1780927870000,-4317.78,0.00034,14]
[424462641,1780927870000,-10000.0,0.00034,2]
[424462636,1780927870000,-500.0,0.00034,120]
[424462637,1780927870000,-1000.0,0.00034,30]
[424462640,1780927870000,-5039.0,0.00034,2]
[424462635,1780927870000,-1000.0,0.00034,120]
[424462659,1780927870000,-150.0,0.0003419,2]
[424462638,1780927870000,-200.0,0.00034,120]
[424462648,1780927870000,-209.0290413,0.00034078,14]
[424462656,1780927870000,-187.67701119,0.00034186,2]
[424462653,1780927870000,-1400.0,0.0003413,120]
[424462650,1780927870000,-1000.0,0.000341,30]
[424462655,1780927870000,-3551.6,0.00034182,7]
[424462647,1780927870000,-151.0,0.00034051,2]
[424462646,1780927870000,-1812.99,0.00034051,30]
[424462644,1780927870000,-1005.0,0.00034,7]
[424462652,1780927870000,-3174.9,0.00034113,2]
[424462649,1780927870000,-329.06,0.00034082,120]
[424462651,1780927870000,-1410.42,0.0003411,120]
[424462654,1780927870000,-1132.27,0.0003413,7]
[424462657,1780927870000,-165.83782373,0.00034186,5]
[424462645,1780927870000,-181.79881,0.00034,120]
[424462690,1780927870000,-217.3,0.00034329,120]
[424462746,1780927870000,-453.2205684,0.00034624,2]
[424462693,1780927870000,-350.0,0.00034399,36]
[424462728,1780927870000,-445.04112871,0.00034624,2]
[424462727,1780927870000,-1255.75,0.0003462,30]
[424462726,1780927870000,-1801.4355682,0.00034616,2]
[424462723,1780927870000,-329.06,0.00034575,120]
[424462725,1780927870000,-1366.19005198,0.00034616,7]
[424462729,1780927870000,-300.0,0.00034624,2]
[424462730,1780927870000,-1098.23289809,0.00034624,2]
[424462733,1780927870000,-606.28975262,0.00034624,2]
[424462742,1780927870000,-866.9992223,0.00034624,2]
[424462734,1780927870000,-300.0,0.00034624,2]
[424462740,1780927870000,-300.0,0.00034624,2]
[424462744,1780927870000,-310.50673717,0.00034624,2]
[424462736,1780927870000,-728.27068147,0.00034624,2]
[424462732,1780927870000,-439.63793243,0.00034624,2]
[424462735,1780927870000,-535.55436996,0.00034624,2]
[424462739,1780927870000,-301.44773513,0.00034624,2]
[424462743,1780927870000,-951.87668187,0.00034624,2]
[424462741,1780927870000,-346.00005627,0.00034624,2]
[424462745,1780927870000,-512.71696531,0.00034624,2]
[424462749,1780927870000,-300.00000001,0.00034624,2]
[424462747,1780927870000,-445.04112871,0.00034624,2]
[424462751,1780927870000,-1098.23289809,0.00034624,2]
[424462750,1780927870000,-300.0,0.00034624,2]
[424462752,1780927870000,-300.0,0.00034624,2]
[424462754,1780927870000,-300.0,0.00034624,2]
[424462753,1780927870000,-300.40089733,0.00034624,2]
[424462691,1780927870000,-329.06,0.00034329,120]
[424462748,1780927870000,-300.0,0.00034624,2]
[424462738,1780927870000,-300.46063497,0.00034624,2]
[424462720,1780927870000,-150.0,0.0003455,2]
[424462737,1780927870000,-302.67274291,0.00034624,2]
[424462724,1780927870000,-500.0,0.00034606,2]
[424462694,1780927870000,-369.06159476,0.00034444,30]
[424462731,1780927870000,-494.11936665,0.00034624,2]
[424462697,1780927870000,-150.0,0.00034453,2]
[424462699,1780927870000,-500.0,0.00034453,2]
[424462696,1780927870000,-150.0,0.00034453,2]
[424462698,1780927870000,-500.0,0.00034453,2]
[424462704,1780927870000,-317.0,0.00034489,10]
[424462701,1780927870000,-796.43,0.00034456,7]
[424462700,1780927870000,-500.0,0.00034453,2]
[424462702,1780927870000,-2000.0,0.00034483,7]
[424462705,1780927870000,-506.0,0.00034489,10]
[424462703,1780927870000,-417.0,0.00034489,10]
[424462706,1780927870000,-433.0,0.0003449,10]
[424462707,1780927870000,-2349.453,0.000345,10]
[424462692,1780927870000,-378.489192,0.00034377,120]
[424462721,1780927870000,-150.0,0.0003455,2]
[424462709,1780927870000,-1000.0,0.000345,30]
[424462722,1780927870000,-4000.0,0.00034567,10]
[424462716,1780927870000,-1424.53,0.00034544,60]
[424462718,1780927870000,-150.0,0.0003455,2]
[424462719,1780927870000,-150.0,0.0003455,2]
[424462715,1780927870000,-13085.93,0.00034544,60]
[424462712,1780927870000,-1463.13,0.00034513,2]
[424462717,1780927870000,-1743.07,0.00034544,60]
[424462713,1780927870000,-439.01,0.00034544,60]
[424462714,1780927870000,-7376.46,0.00034544,60]
[424462710,1780927870000,-24594.31901347,0.000345,30]
[424462711,1780927870000,-167.0,0.000345,120]
[424462708,1780927870000,-2349.453,0.000345,20]
[424462794,1780927871000,-300.0,0.00034624,2]
[424462800,1780927871000,-314.31051726,0.00034624,2]
[424462799,1780927871000,-535.55436996,0.00034624,2]
[424462797,1780927871000,-300.0,0.00034624,2]
[424462795,1780927871000,-300.0,0.00034624,2]
[424462786,1780927871000,-1098.23289809,0.00034624,2]
[424462796,1780927871000,-606.28975262,0.00034624,2]
[424462790,1780927871000,-300.0,0.00034624,2]
[424462791,1780927871000,-300.0,0.00034624,2]
[424462792,1780927871000,-300.43662704,0.00034624,2]
[424462801,1780927871000,-728.27068147,0.00034624,2]
[424462785,1780927871000,-300.0,0.00034624,2]
[424462788,1780927871000,-300.00000001,0.00034624,2]
[424462793,1780927871000,-494.11936665,0.00034624,2]
[424462798,1780927871000,-300.0,0.00034624,2]
[424462804,1780927871000,-300.0,0.00034624,2]
[424462809,1780927871000,-391.96198426,0.00034624,2]
[424462806,1780927871000,-301.44773513,0.00034624,2]
[424462802,1780927871000,-300.0,0.00034624,2]
[424462803,1780927871000,-302.67274291,0.00034624,2]
[424462805,1780927871000,-300.46063497,0.00034624,2]
[424462808,1780927871000,-300.0,0.00034624,2]
[424462810,1780927871000,-528.42030004,0.00034624,2]
[424462822,1780927871000,-300.0,0.00034624,2]
[424462815,1780927871000,-1802.31379978,0.00034624,2]
[424462821,1780927871000,-595.77819414,0.00034624,2]
[424462813,1780927871000,-866.9992223,0.00034624,2]
[424462811,1780927871000,-300.38649784,0.00034624,2]
[424462812,1780927871000,-300.0,0.00034624,2]
[424462807,1780927871000,-300.0,0.00034624,2]
[424462789,1780927871000,-300.0,0.00034624,2]
[424462756,1780927871000,-300.0,0.00034624,2]
[424462784,1780927871000,-300.0,0.00034624,2]
[424462814,1780927871000,-951.87668187,0.00034624,2]
[424462757,1780927871000,-606.28975262,0.00034624,2]
[424462755,1780927871000,-494.11936665,0.00034624,2]
[424462758,1780927871000,-300.0,0.00034624,2]
[424462768,1780927871000,-344.91771411,0.00034624,2]
[424462764,1780927871000,-301.44773513,0.00034624,2]
[424462759,1780927871000,-535.55436996,0.00034624,2]
[424462761,1780927871000,-446.41985397,0.00034624,2]
[424462765,1780927871000,-300.0,0.00034624,2]
[424462760,1780927871000,-728.27068147,0.00034624,2]
[424462763,1780927871000,-300.46063497,0.00034624,2]
[424462767,1780927871000,-391.96198426,0.00034624,2]
[424462766,1780927871000,-326.15845201,0.00034624,2]
[424462762,1780927871000,-302.67274291,0.00034624,2]
[424462769,1780927871000,-528.42030004,0.00034624,2]
[424462770,1780927871000,-300.38649784,0.00034624,2]
[424462777,1780927871000,-595.77819414,0.00034624,2]
[424462783,1780927871000,-300.0,0.00034624,2]
[424462772,1780927871000,-951.87668187,0.00034624,2]
[424462780,1780927871000,-300.0,0.00034624,2]
[424462782,1780927871000,-300.0,0.00034624,2]
[424462773,1780927871000,-1814.95533603,0.00034624,2]
[424462776,1780927871000,-300.39982744,0.00034624,2]
[424462778,1780927871000,-512.71696531,0.00034624,2]
[424462774,1780927871000,-540.64673214,0.00034624,2]
[424462771,1780927871000,-866.9992223,0.00034624,2]
[424462775,1780927871000,-310.50673715,0.00034624,2]
[424462779,1780927871000,-453.2205684,0.00034624,2]
[424462781,1780927871000,-445.04112871,0.00034624,2]
[424462787,1780927871000,-300.0,0.00034624,2]
[424462816,1780927871000,-300.0,0.00034624,2]
[424462871,1780927871000,-866.9992223,0.00034624,2]
[424462819,1780927871000,-300.39982744,0.00034624,2]
[424462852,1780927871000,-300.38748932,0.00034624,2]
[424462860,1780927871000,-300.0,0.00034624,2]
[424462854,1780927871000,-584.17037917,0.00034624,2]
[424462855,1780927871000,-300.0,0.00034624,2]
[424462853,1780927871000,-300.0,0.00034624,2]
[424462857,1780927871000,-728.27068147,0.00034624,2]
[424462858,1780927871000,-300.0,0.00034624,2]
[424462856,1780927871000,-535.55436996,0.00034624,2]
[424462859,1780927871000,-302.67274291,0.00034624,2]
[424462863,1780927871000,-301.44773513,0.00034624,2]
[424462865,1780927871000,-300.00000001,0.00034624,2]
[424462869,1780927871000,-300.0,0.00034624,2]
[424462868,1780927871000,-528.42030004,0.00034624,2]
[424462870,1780927871000,-300.0,0.00034624,2]
[424462867,1780927871000,-344.95018438,0.00034624,2]
[424462866,1780927871000,-508.03801574,0.00034624,2]
[424462864,1780927871000,-300.0,0.00034624,2]
[424462874,1780927871000,-300.00000001,0.00034624,2]
[424462872,1780927871000,-951.87668187,0.00034624,2]
[424462875,1780927871000,-310.50673715,0.00034624,2]
[424462873,1780927871000,-1802.31379978,0.00034624,2]
[424462877,1780927871000,-300.00000001,0.00034624,2]
[424462876,1780927871000,-300.0,0.00034624,2]
[424462878,1780927871000,-300.39982744,0.00034624,2]
[424462879,1780927871000,-300.0,0.00034624,2]
[424462880,1780927871000,-595.77819414,0.00034624,2]
[424462881,1780927871000,-300.0,0.00034624,2]
[424462883,1780927871000,-512.71696531,0.00034624,2]
[424462817,1780927871000,-310.50673717,0.00034624,2]
[424462850,1780927871000,-300.63315161,0.00034624,2]
[424462861,1780927871000,-302.88565842,0.00034624,2]
[424462882,1780927871000,-300.0,0.00034624,2]
[424462851,1780927871000,-606.28975262,0.00034624,2]
[424462862,1780927871000,-300.46063497,0.00034624,2]
[424462820,1780927871000,-300.0,0.00034624,2]
[424462824,1780927871000,-512.71696531,0.00034624,2]
[424462825,1780927871000,-453.2205684,0.00034624,2]
[424462834,1780927871000,-300.0,0.00034624,2]
[424462835,1780927871000,-300.0,0.00034624,2]
[424462826,1780927871000,-300.0,0.00034624,2]
[424462823,1780927871000,-300.0,0.00034624,2]
[424462830,1780927871000,-300.0,0.00034624,2]
[424462827,1780927871000,-300.0,0.00034624,2]
[424462831,1780927871000,-300.0,0.00034624,2]
[424462833,1780927871000,-300.0,0.00034624,2]
[424462828,1780927871000,-300.0,0.00034624,2]
[424462829,1780927871000,-445.04112871,0.00034624,2]
[424462818,1780927871000,-300.00000001,0.00034624,2]
[424462836,1780927871000,-1098.23289809,0.00034624,2]
[424462849,1780927871000,-300.64415688,0.00034624,2]
[424462832,1780927871000,-300.0,0.00034624,2]
[424462847,1780927871000,-300.0,0.00034624,2]
[424462845,1780927871000,-300.0,0.00034624,2]
[424462843,1780927871000,-300.0,0.00034624,2]
[424462842,1780927871000,-300.0,0.00034624,2]
[424462848,1780927871000,-300.0,0.00034624,2]
[424462846,1780927871000,-494.11936665,0.00034624,2]
[424462844,1780927871000,-301.06764366,0.00034624,2]
[424462839,1780927871000,-300.0,0.00034624,2]
[424462841,1780927871000,-300.40264685,0.00034624,2]
[424462838,1780927871000,-300.00000001,0.00034624,2]
[424462840,1780927871000,-300.0,0.00034624,2]
[424462837,1780927871000,-300.0,0.00034624,2]
[424462923,1780927872000,-302.67274291,0.00034624,2]
[424462925,1780927872000,-300.0,0.00034624,2]
[424462924,1780927872000,-300.46063497,0.00034624,2]
[424462926,1780927872000,-300.0,0.00034624,2]
[424462920,1780927872000,-535.55436996,0.00034624,2]
[424462921,1780927872000,-728.27068147,0.00034624,2]
[424462916,1780927872000,-300.0,0.00034624,2]
[424462918,1780927872000,-300.0,0.00034624,2]
[424462928,1780927872000,-300.00000001,0.00034624,2]
[424462917,1780927872000,-300.0,0.00034624,2]
[424462927,1780927872000,-301.44773513,0.00034624,2]
[424462919,1780927872000,-300.0,0.00034624,2]
[424462938,1780927872000,-951.87668187,0.00034624,2]
[424462930,1780927872000,-300.0,0.00034624,2]
[424462929,1780927872000,-300.0,0.00034624,2]
[424462941,1780927872000,-300.0,0.00034624,2]
[424462939,1780927872000,-1802.31379979,0.00034624,2]
[424462940,1780927872000,-300.0,0.00034624,2]
[424462935,1780927872000,-300.0,0.00034624,2]
[424462933,1780927872000,-599.61350216,0.00034624,2]
[424462931,1780927872000,-344.95018438,0.00034624,2]
[424462934,1780927872000,-300.0,0.00034624,2]
[424462932,1780927872000,-528.42030005,0.00034624,2]
[424462937,1780927872000,-866.9992223,0.00034624,2]
[424462908,1780927872000,-300.0,0.00034624,2]
[424462936,1780927872000,-300.0,0.00034624,2]
[424462922,1780927872000,-300.0,0.00034624,2]
[424462911,1780927872000,-300.0,0.00034624,2]
[424462895,1780927872000,-300.0,0.00034624,2]
[424462910,1780927872000,-300.0,0.00034624,2]
[424462942,1780927872000,-310.50673717,0.00034624,2]
[424462887,1780927872000,-472.81669216,0.00034624,2]
[424462888,1780927872000,-300.0,0.00034624,2]
[424462885,1780927872000,-300.0,0.00034624,2]
[424462884,1780927872000,-453.22056841,0.00034624,2]
[424462886,1780927872000,-300.0,0.00034624,2]
[424462889,1780927872000,-445.04112871,0.00034624,2]
[424462893,1780927872000,-300.0,0.00034624,2]
[424462896,1780927872000,-300.0,0.00034624,2]
[424462890,1780927872000,-300.0,0.00034624,2]
[424462891,1780927872000,-300.0,0.00034624,2]
[424462894,1780927872000,-300.0,0.00034624,2]
[424462900,1780927872000,-300.00000001,0.00034624,2]
[424462912,1780927872000,-300.0,0.00034624,2]
[424462892,1780927872000,-300.0,0.00034624,2]
[424462899,1780927872000,-300.0,0.00034624,2]
[424462901,1780927872000,-300.0,0.00034624,2]
[424462898,1780927872000,-1098.23289809,0.00034624,2]
[424462913,1780927872000,-300.00000001,0.00034624,2]
[424462903,1780927872000,-300.0,0.00034624,2]
[424462914,1780927872000,-606.28975262,0.00034624,2]
[424462915,1780927872000,-300.0,0.00034624,2]
[424462902,1780927872000,-300.47364552,0.00034624,2]
[424462904,1780927872000,-300.0,0.00034624,2]
[424462905,1780927872000,-300.0,0.00034624,2]
[424462909,1780927872000,-494.11936665,0.00034624,2]
[424462906,1780927872000,-300.0,0.00034624,2]
[424462907,1780927872000,-300.0,0.00034624,2]
[424462897,1780927872000,-300.00000001,0.00034624,2]
[424462944,1780927872000,-599.99999998,0.00034624,2]
[424462960,1780927872000,-300.0,0.00034624,2]
[424462945,1780927872000,-300.39982744,0.00034624,2]
[424462980,1780927872000,-300.0,0.00034624,2]
[424462978,1780927872000,-494.11936665,0.00034624,2]
[424462971,1780927872000,-300.0,0.00034624,2]
[424462982,1780927872000,-300.0,0.00034624,2]
[424462988,1780927872000,-300.0,0.00034624,2]
[424462981,1780927872000,-300.0,0.00034624,2]
[424462987,1780927872000,-300.0,0.00034624,2]
[424462984,1780927872000,-812.49375355,0.00034624,2]
[424462985,1780927872000,-300.0,0.00034624,2]
[424462983,1780927872000,-300.0,0.00034624,2]
[424462991,1780927872000,-728.27068147,0.00034624,2]
[424462990,1780927872000,-535.55436996,0.00034624,2]
[424462943,1780927872000,-300.0,0.00034624,2]
[424462989,1780927872000,-300.0,0.00034624,2]
[424462993,1780927872000,-302.67274291,0.00034624,2]
[424462995,1780927872000,-301.44773513,0.00034624,2]
[424462996,1780927872000,-300.46063497,0.00034624,2]
[424462994,1780927872000,-300.0,0.00034624,2]
[424462997,1780927872000,-300.0,0.00034624,2]
[424462999,1780927872000,-300.0,0.00034624,2]
[424462998,1780927872000,-300.0,0.00034624,2]
[424463000,1780927872000,-300.0,0.00034624,2]
[424463001,1780927872000,-300.0,0.00034624,2]
[424463003,1780927872000,-528.42030003,0.00034624,2]
[424463004,1780927872000,-599.61350216,0.00034624,2]
[424463002,1780927872000,-344.95018438,0.00034624,2]
[424463005,1780927872000,-300.0,0.00034624,2]
[424462976,1780927872000,-300.0,0.00034624,2]
[424462975,1780927872000,-300.0,0.00034624,2]
[424462986,1780927872000,-300.0,0.00034624,2]
[424462973,1780927872000,-300.0,0.00034624,2]
[424462992,1780927872000,-300.0,0.00034624,2]
[424462946,1780927872000,-300.0,0.00034624,2]
[424462948,1780927872000,-300.0,0.00034624,2]
[424462947,1780927872000,-595.77819414,0.00034624,2]
[424462953,1780927872000,-453.2205684,0.00034624,2]
[424462949,1780927872000,-300.0,0.00034624,2]
[424462951,1780927872000,-300.0,0.00034624,2]
[424462950,1780927872000,-512.71696531,0.00034624,2]
[424462952,1780927872000,-300.00000001,0.00034624,2]
[424462966,1780927872000,-300.0,0.00034624,2]
[424462955,1780927872000,-300.0,0.00034624,2]
[424462956,1780927872000,-300.0,0.00034624,2]
[424462967,1780927872000,-300.00000001,0.00034624,2]
[424462965,1780927872000,-300.0,0.00034624,2]
[424462954,1780927872000,-300.0,0.00034624,2]
[424462961,1780927872000,-300.0,0.00034624,2]
[424462969,1780927872000,-300.0,0.00034624,2]
[424462962,1780927872000,-300.0,0.00034624,2]
[424462974,1780927872000,-300.0,0.00034624,2]
[424462970,1780927872000,-300.0,0.00034624,2]
[424462979,1780927872000,-300.0,0.00034624,2]
[424462968,1780927872000,-1098.23289809,0.00034624,2]
[424462977,1780927872000,-300.0,0.00034624,2]
[424462964,1780927872000,-300.0,0.00034624,2]
[424462959,1780927872000,-445.04112871,0.00034624,2]
[424462958,1780927872000,-300.0,0.00034624,2]
[424462957,1780927872000,-300.0,0.00034624,2]
[424462963,1780927872000,-300.0,0.00034624,2]
[424462972,1780927872000,-300.0,0.00034624,2]
[424463047,1780927873000,-300.0,0.0003466,2]
[424463048,1780927873000,-494.11936665,0.0003466,2]
[424463046,1780927873000,-300.0,0.0003466,2]
[424463045,1780927873000,-300.0,0.0003466,2]
[424463050,1780927873000,-300.0,0.0003466,2]
[424463049,1780927873000,-300.0,0.0003466,2]
[424463041,1780927873000,-300.0,0.0003466,2]
[424463043,1780927873000,-300.0,0.0003466,2]
[424463040,1780927873000,-300.0,0.0003466,2]
[424463053,1780927873000,-535.503952,0.0003466,2]
[424463052,1780927873000,-300.0,0.0003466,2]
[424463044,1780927873000,-300.0,0.0003466,2]
[424463042,1780927873000,-300.0,0.0003466,2]
[424463054,1780927873000,-300.0,0.0003466,2]
[424463078,1780927873000,-300.0,0.0003466,2]
[424463056,1780927873000,-300.46063497,0.0003466,2]
[424463055,1780927873000,-302.67274291,0.0003466,2]
[424463066,1780927873000,-411.87336108,0.0003466,2]
[424463060,1780927873000,-300.0,0.0003466,2]
[424463065,1780927873000,-300.0,0.0003466,2]
[424463063,1780927873000,-528.42030004,0.0003466,2]
[424463062,1780927873000,-300.0,0.0003466,2]
[424463059,1780927873000,-300.0,0.0003466,2]
[424463064,1780927873000,-300.0,0.0003466,2]
[424463061,1780927873000,-344.91771411,0.0003466,2]
[424463058,1780927873000,-459.66111232,0.0003466,2]
[424463068,1780927873000,-300.0,0.0003466,2]
[424463079,1780927873000,-300.0,0.0003466,2]
[424463051,1780927873000,-300.0,0.0003466,2]
[424463057,1780927873000,-301.44773513,0.0003466,2]
[424463038,1780927873000,-300.0,0.0003466,2]
[424463067,1780927873000,-300.0,0.0003466,2]
[424463034,1780927873000,-300.0,0.0003466,2]
[424463011,1780927873000,-300.0,0.00034624,2]
[424463007,1780927873000,-866.9992223,0.00034624,2]
[424463008,1780927873000,-300.0,0.00034624,2]
[424463006,1780927873000,-300.0,0.00034624,2]
[424463010,1780927873000,-1802.31379978,0.00034624,2]
[424463009,1780927873000,-951.87668187,0.00034624,2]
[424463022,1780927873000,-300.0,0.00034624,2]
[424463021,1780927873000,-300.0,0.00034624,2]
[424463023,1780927873000,-512.71696531,0.00034624,2]
[424463024,1780927873000,-300.0,0.00034624,2]
[424463012,1780927873000,-300.0,0.00034624,2]
[424463025,1780927873000,-446.20779902,0.00034625,120]
[424463013,1780927873000,-300.0,0.00034624,2]
[424463020,1780927873000,-595.77819414,0.00034624,2]
[424463036,1780927873000,-300.0,0.0003466,2]
[424463015,1780927873000,-300.0,0.00034624,2]
[424463017,1780927873000,-300.0,0.00034624,2]
[424463019,1780927873000,-300.0,0.00034624,2]
[424463016,1780927873000,-300.40656678,0.00034624,2]
[424463026,1780927873000,-250.0,0.00034626,7]
[424463028,1780927873000,-250.0,0.00034626,7]
[424463029,1780927873000,-391.0,0.00034629,3]
[424463027,1780927873000,-250.0,0.00034626,7]
[424463030,1780927873000,-3736.0,0.00034641,10]
[424463039,1780927873000,-399.77014003,0.0003466,2]
[424463032,1780927873000,-300.0,0.0003466,2]
[424463035,1780927873000,-300.0,0.0003466,2]
[424463031,1780927873000,-378.0,0.0003465,3]
[424463033,1780927873000,-300.0,0.0003466,2]
[424463037,1780927873000,-445.04112871,0.0003466,2]
[424463018,1780927873000,-300.39982744,0.00034624,2]
[424463070,1780927873000,-538.22510908,0.0003466,2]
[424463014,1780927873000,-310.50673715,0.00034624,2]
[424463071,1780927873000,-300.0,0.0003466,2]
[424463119,1780927873000,-300.0,0.0003466,2]
[424463111,1780927873000,-310.50673716,0.0003466,2]
[424463118,1780927873000,-300.0,0.0003466,2]
[424463110,1780927873000,-300.0,0.0003466,2]
[424463112,1780927873000,-300.0,0.0003466,2]
[424463109,1780927873000,-300.0,0.0003466,2]
[424463116,1780927873000,-300.0,0.0003466,2]
[424463114,1780927873000,-300.0,0.0003466,2]
[424463113,1780927873000,-512.71696531,0.0003466,2]
[424463115,1780927873000,-453.2205684,0.0003466,2]
[424463117,1780927873000,-300.0,0.0003466,2]
[424463121,1780927873000,-300.0,0.0003466,2]
[424463120,1780927873000,-445.04112871,0.0003466,2]
[424463131,1780927873000,-300.0,0.0003466,2]
[424463107,1780927873000,-300.0,0.0003466,2]
[424463132,1780927873000,-300.0,0.0003466,2]
[424463123,1780927873000,-300.0,0.0003466,2]
[424463122,1780927873000,-300.0,0.0003466,2]
[424463128,1780927873000,-300.0,0.0003466,2]
[424463125,1780927873000,-300.0,0.0003466,2]
[424463127,1780927873000,-300.0,0.0003466,2]
[424463130,1780927873000,-300.0,0.0003466,2]
[424463124,1780927873000,-300.0,0.0003466,2]
[424463129,1780927873000,-494.11936665,0.0003466,2]
[424463134,1780927873000,-535.503952,0.0003466,2]
[424463133,1780927873000,-300.0,0.0003466,2]
[424463135,1780927873000,-302.67274291,0.0003466,2]
[424463136,1780927873000,-300.46063497,0.0003466,2]
[424463138,1780927873000,-440.33888768,0.0003466,2]
[424463069,1780927873000,-310.50673716,0.0003466,2]
[424463137,1780927873000,-301.44773513,0.0003466,2]
[424463108,1780927873000,-300.0,0.0003466,2]
[424463126,1780927873000,-300.0,0.0003466,2]
[424463101,1780927873000,-459.66111232,0.0003466,2]
[424463099,1780927873000,-300.46063497,0.0003466,2]
[424463073,1780927873000,-300.0,0.0003466,2]
[424463072,1780927873000,-512.71696531,0.0003466,2]
[424463075,1780927873000,-300.0,0.0003466,2]
[424463076,1780927873000,-300.0,0.0003466,2]
[424463074,1780927873000,-453.2205684,0.0003466,2]
[424463080,1780927873000,-445.04112871,0.0003466,2]
[424463081,1780927873000,-300.0,0.0003466,2]
[424463085,1780927873000,-417.26260405,0.0003466,2]
[424463087,1780927873000,-311.97681449,0.0003466,2]
[424463090,1780927873000,-300.0,0.0003466,2]
[424463088,1780927873000,-300.0,0.0003466,2]
[424463092,1780927873000,-300.0,0.0003466,2]
[424463084,1780927873000,-300.0,0.0003466,2]
[424463086,1780927873000,-300.0,0.0003466,2]
[424463077,1780927873000,-300.0,0.0003466,2]
[424463091,1780927873000,-494.11936665,0.0003466,2]
[424463083,1780927873000,-300.0,0.0003466,2]
[424463097,1780927873000,-302.67274291,0.0003466,2]
[424463100,1780927873000,-301.44773513,0.0003466,2]
[424463103,1780927873000,-300.0,0.0003466,2]
[424463102,1780927873000,-300.0,0.0003466,2]
[424463096,1780927873000,-535.503952,0.0003466,2]
[424463095,1780927873000,-300.0,0.0003466,2]
[424463098,1780927873000,-300.0,0.0003466,2]
[424463093,1780927873000,-300.0,0.0003466,2]
[424463105,1780927873000,-528.42030004,0.0003466,2]
[424463106,1780927873000,-300.0,0.0003466,2]
[424463094,1780927873000,-300.0,0.0003466,2]
[424463104,1780927873000,-344.91771412,0.0003466,2]